[Event "*** Titled Tuesday Blitz"]
[Site "Chess.com"]
[Date "2021.03.09"]
[Round "1"]
[White "Homyakova_Elena"]
[Black "Malev212"]
[Result "0-1"]
[WhiteElo "2263"]
[BlackElo "2572"]
[TimeControl "180+1"]
[EndTime "10:08:05 PST"]
[Termination "Malev212 won on time"]

1. e4 {[%clk 0:03:00.9]} 1... c5 {[%clk 0:02:57.7]} 2. Nf3 {[%clk 0:03:00.3]}
2... e6 {[%clk 0:02:56.6]} 3. Nc3 {[%clk 0:02:58.4]} 3... a6 {[%clk 0:02:52.5]}
4. d4 {[%clk 0:02:58.5]} 4... cxd4 {[%clk 0:02:51.7]} 5. Nxd4 {[%clk 0:02:59.4]}
5... Qc7 {[%clk 0:02:50.4]} 6. Be2 {[%clk 0:02:58.4]} 6... Bc5 {[%clk
0:02:39.9]} 7. Nb3 {[%clk 0:02:54.3]} 7... Be7 {[%clk 0:02:38]} 8. O-O {[%clk
0:02:52.8]} 8... d6 {[%clk 0:02:37.1]} 9. Kh1 {[%clk 0:02:51.9]} 9... Nd7 {[%clk
0:02:36.7]} 10. a4 {[%clk 0:02:50.5]} 10... b6 {[%clk 0:02:35.4]} 11. f4 {[%clk
0:02:49.9]} 11... Bb7 {[%clk 0:02:34.2]} 12. Bf3 {[%clk 0:02:49.5]} 12... Ngf6
{[%clk 0:02:33.9]} 13. Be3 {[%clk 0:02:45.7]} 13... O-O {[%clk 0:02:29.2]} 14.
Qe1 {[%clk 0:02:38.7]} 14... Rfe8 {[%clk 0:02:28.1]} 15. Rd1 {[%clk 0:02:35.3]}
15... Bf8 {[%clk 0:02:27.3]} 16. g4 {[%clk 0:02:20.5]} 16... d5 {[%clk
0:01:58.5]} 17. e5 {[%clk 0:02:12.3]} 17... Ne4 {[%clk 0:01:57.5]} 18. Nxe4
{[%clk 0:01:51.7]} 18... dxe4 {[%clk 0:01:56.7]} 19. Bg2 {[%clk 0:01:51]} 19...
Rad8 {[%clk 0:01:42.3]} 20. c3 {[%clk 0:01:46.1]} 20... g5 {[%clk 0:01:28.8]}
21. Bd4 {[%clk 0:01:20.1]} 21... gxf4 {[%clk 0:01:24.2]} 22. Bxe4 {[%clk
0:01:17.8]} 22... Bg7 {[%clk 0:01:19.2]} 23. Rxf4 {[%clk 0:01:01.8]} 23... Nxe5
{[%clk 0:01:18.5]} 24. Kg1 {[%clk 0:00:26.8]} 24... Nc4 {[%clk 0:00:53.8]} 25.
Qf2 {[%clk 0:00:09.7]} 25... Bxe4 {[%clk 0:00:50.5]} 26. Rxe4 {[%clk 0:00:09.4]}
26... e5 {[%clk 0:00:50]} 27. Rde1 {[%clk 0:00:03.3]} 27... Nxb2 {[%clk
0:00:48.9]} 28. Be3 {[%clk 0:00:02.3]} 28... Nd3 {[%clk 0:00:47.5]} 29. Qe2
{[%clk 0:00:01.9]} 29... Nxe1 {[%clk 0:00:46.7]} 30. Qxe1 {[%clk 0:00:02.8]}
30... Qc6 {[%clk 0:00:43.3]} 31. Bf2 {[%clk 0:00:02.9]} 31... Rd1 {[%clk
0:00:41.5]} 32. Qxd1 {[%clk 0:00:02.6]} 32... Qxe4 {[%clk 0:00:41.6]} 33. Qd7
{[%clk 0:00:02.7]} 33... Rf8 {[%clk 0:00:36.9]} 34. Nd2 {[%clk 0:00:03.3]} 34...
Qe2 {[%clk 0:00:34.4]} 35. Nf1 {[%clk 0:00:02]} 35... f5 {[%clk 0:00:32.1]} 36.
Bxb6 {[%clk 0:00:02]} 36... Qxg4+ {[%clk 0:00:30.9]} 37. Ng3 {[%clk 0:00:01.9]}
37... e4 {[%clk 0:00:28.6]} 38. Qe6+ {[%clk 0:00:02.4]} 38... Kh8 {[%clk
0:00:27.6]} 39. Bc5 {[%clk 0:00:02]} 39... Rb8 {[%clk 0:00:26.1]} 40. Qxf5
{[%clk 0:00:02.4]} 40... Rb1+ {[%clk 0:00:24.3]} 41. Kf2 {[%clk 0:00:02.7]}
41... Qxf5+ {[%clk 0:00:23.5]} 42. Nxf5 {[%clk 0:00:02.7]} 42... Bxc3 {[%clk
0:00:24]} 43. Nd6 {[%clk 0:00:02.2]} 43... Bb4 {[%clk 0:00:18.6]} 44. Bd4+
{[%clk 0:00:01.6]} 44... Kg8 {[%clk 0:00:18.3]} 45. Nxe4 {[%clk 0:00:02.2]}
45... Rb3 {[%clk 0:00:16]} 46. Nf6+ {[%clk 0:00:02.7]} 46... Kg7 {[%clk
0:00:14.1]} 47. Nd5+ {[%clk 0:00:03.2]} 47... Kg6 {[%clk 0:00:13.4]} 48. Nf4+
{[%clk 0:00:03]} 48... Kf5 {[%clk 0:00:12.6]} 49. Ne2 {[%clk 0:00:03.6]} 49...
Ra3 {[%clk 0:00:11]} 50. Ng3+ {[%clk 0:00:03.8]} 50... Kg4 {[%clk 0:00:11]} 51.
Be3 {[%clk 0:00:01.5]} 51... Ra2+ {[%clk 0:00:09.9]} 0-1

[Event "*** Titled Tuesday Blitz"]
[Site "Chess.com"]
[Date "2021.03.09"]
[Round "1"]
[White "mr_gustavo"]
[Black "RobertoJBM"]
[Result "0-1"]
[WhiteElo "2399"]
[BlackElo "2727"]
[TimeControl "180+1"]
[EndTime "10:08:06 PST"]
[Termination "RobertoJBM won by resignation"]

1. e4 {[%clk 0:03:00.9]} 1... c6 {[%clk 0:02:57.8]} 2. Nc3 {[%clk 0:02:56.7]}
2... d5 {[%clk 0:02:55.3]} 3. Nf3 {[%clk 0:02:56.3]} 3... dxe4 {[%clk
0:02:53.1]} 4. Nxe4 {[%clk 0:02:56.3]} 4... Bg4 {[%clk 0:02:50.6]} 5. h3 {[%clk
0:02:55.1]} 5... Bxf3 {[%clk 0:02:47.8]} 6. Qxf3 {[%clk 0:02:56]} 6... Nd7
{[%clk 0:02:44.5]} 7. d3 {[%clk 0:02:50.1]} 7... Ngf6 {[%clk 0:02:41.4]} 8. Bd2
{[%clk 0:02:46.8]} 8... e6 {[%clk 0:02:32.9]} 9. O-O-O {[%clk 0:02:45.8]} 9...
Be7 {[%clk 0:02:31.5]} 10. g4 {[%clk 0:02:45.8]} 10... Qb6 {[%clk 0:02:19.1]}
11. Bc3 {[%clk 0:02:37.9]} 11... Nxe4 {[%clk 0:02:06]} 12. dxe4 {[%clk
0:02:37.5]} 12... Bf6 {[%clk 0:02:01.4]} 13. Rxd7 {[%clk 0:02:01.6]} 13... Kxd7
{[%clk 0:01:59.6]} 14. Bxf6 {[%clk 0:02:02.1]} 14... gxf6 {[%clk 0:01:59.5]} 15.
Qxf6 {[%clk 0:02:02.6]} 15... Rhf8 {[%clk 0:01:45.2]} 16. Bc4 {[%clk 0:01:58.2]}
16... Rad8 {[%clk 0:01:42.6]} 17. f4 {[%clk 0:01:05.5]} 17... Qe3+ {[%clk
0:01:32.6]} 18. Kb1 {[%clk 0:01:05]} 18... Qxe4 {[%clk 0:01:18.8]} 19. Rd1+
{[%clk 0:01:04.7]} 19... Kc8 {[%clk 0:01:17.2]} 20. Bd3 {[%clk 0:01:05]} 20...
Qf3 {[%clk 0:01:10.9]} 21. Re1 {[%clk 0:01:02]} 21... Qxh3 {[%clk 0:01:01.5]}
22. g5 {[%clk 0:00:43.1]} 22... Rxd3 {[%clk 0:00:52.8]} 23. cxd3 {[%clk
0:00:44]} 23... Qxd3+ {[%clk 0:00:51.5]} 24. Ka1 {[%clk 0:00:44.5]} 24... Rd8
{[%clk 0:00:48.5]} 25. a3 {[%clk 0:00:43.3]} 25... Rd7 {[%clk 0:00:36.9]} 26.
Qh8+ {[%clk 0:00:39.3]} 26... Kc7 {[%clk 0:00:36.5]} 27. Qe5+ {[%clk 0:00:38.9]}
27... Qd6 {[%clk 0:00:34]} 28. Qe4 {[%clk 0:00:35.7]} 28... Qd2 {[%clk
0:00:31.4]} 29. Qe5+ {[%clk 0:00:32.4]} 29... Kb6 {[%clk 0:00:25.9]} 30. Rh1
{[%clk 0:00:20.4]} 30... Qd3 {[%clk 0:00:22.3]} 31. Rc1 {[%clk 0:00:14.9]} 31...
a5 {[%clk 0:00:16.4]} 32. Qc5+ {[%clk 0:00:13]} 32... Ka6 {[%clk 0:00:16.8]} 33.
Qf8 {[%clk 0:00:12.2]} 33... Ka7 {[%clk 0:00:15.5]} 34. Qc5+ {[%clk 0:00:11.8]}
34... Ka6 {[%clk 0:00:14.1]} 35. Qf8 {[%clk 0:00:11.8]} 35... Qf5 {[%clk
0:00:12.7]} 36. Qa8+ {[%clk 0:00:09.2]} 36... Kb6 {[%clk 0:00:13]} 37. Qc8
{[%clk 0:00:08.9]} 37... Qd5 {[%clk 0:00:12.7]} 38. Qh8 {[%clk 0:00:05.7]} 38...
Qd3 {[%clk 0:00:10.8]} 39. Qe5 {[%clk 0:00:03.1]} 39... Rd5 {[%clk 0:00:08.5]}
40. Qf6 {[%clk 0:00:03.1]} 40... Qf5 {[%clk 0:00:07.7]} 41. Qe7 {[%clk
0:00:02.4]} 41... Ka7 {[%clk 0:00:07.8]} 42. Qf8 {[%clk 0:00:01.4]} 42... Rd7
{[%clk 0:00:06.9]} 43. Qg7 {[%clk 0:00:01.9]} 43... Qd5 {[%clk 0:00:06.4]} 44.
Qc3 {[%clk 0:00:02.4]} 44... Qb5 {[%clk 0:00:05.5]} 45. Qe3+ {[%clk 0:00:02.7]}
45... Qb6 {[%clk 0:00:05.6]} 46. Qe4 {[%clk 0:00:02.8]} 46... Rd2 {[%clk
0:00:06]} 47. Qe5 {[%clk 0:00:02.7]} 47... Qd4 {[%clk 0:00:05.9]} 48. Qxd4+
{[%clk 0:00:01.2]} 48... Rxd4 {[%clk 0:00:05.3]} 49. Rf1 {[%clk 0:00:02.1]}
49... Rd5 {[%clk 0:00:05.4]} 50. Kb1 {[%clk 0:00:03]} 50... Rf5 {[%clk
0:00:06.3]} 51. Kc2 {[%clk 0:00:02.6]} 51... e5 {[%clk 0:00:06.7]} 52. Kd3
{[%clk 0:00:02.7]} 52... exf4 {[%clk 0:00:07.2]} 53. Rxf4 {[%clk 0:00:03.6]}
53... Rxf4 {[%clk 0:00:07.4]} 0-1

[Event "*** Titled Tuesday Blitz"]
[Site "Chess.com"]
[Date "2021.03.09"]
[Round "1"]
[White "googlegoom"]
[Black "Azerichess"]
[Result "0-1"]
[WhiteElo "2477"]
[BlackElo "2970"]
[TimeControl "180+1"]
[EndTime "10:08:07 PST"]
[Termination "Azerichess won by resignation"]

1. Nf3 {[%clk 0:03:00.9]} 1... d5 {[%clk 0:02:58.1]} 2. b3 {[%clk 0:03:00.9]}
2... Nf6 {[%clk 0:02:57.2]} 3. Bb2 {[%clk 0:03:01.4]} 3... e6 {[%clk 0:02:56.3]}
4. e3 {[%clk 0:03:01]} 4... Be7 {[%clk 0:02:56.5]} 5. Be2 {[%clk 0:02:53.4]}
5... O-O {[%clk 0:02:52.7]} 6. O-O {[%clk 0:02:53.6]} 6... c5 {[%clk 0:02:52]}
7. d4 {[%clk 0:02:54.1]} 7... cxd4 {[%clk 0:02:49.4]} 8. Nxd4 {[%clk 0:02:54.2]}
8... b6 {[%clk 0:02:45.9]} 9. Nd2 {[%clk 0:02:53.4]} 9... Bb7 {[%clk 0:02:45.4]}
10. c4 {[%clk 0:02:51.9]} 10... Nc6 {[%clk 0:02:40.6]} 11. Rc1 {[%clk
0:02:49.2]} 11... Rc8 {[%clk 0:02:35.3]} 12. Nxc6 {[%clk 0:02:41.1]} 12... Bxc6
{[%clk 0:02:33.4]} 13. Bf3 {[%clk 0:02:39]} 13... Qd7 {[%clk 0:02:19.4]} 14.
cxd5 {[%clk 0:02:30.5]} 14... Bxd5 {[%clk 0:01:56.1]} 15. Bxd5 {[%clk
0:02:16.3]} 15... Nxd5 {[%clk 0:01:57]} 16. Nf3 {[%clk 0:02:00.3]} 16... Rxc1
{[%clk 0:01:51.7]} 17. Qxc1 {[%clk 0:02:00.1]} 17... Rc8 {[%clk 0:01:51.9]} 18.
Qa1 {[%clk 0:01:59.8]} 18... f6 {[%clk 0:01:43.3]} 19. Rc1 {[%clk 0:01:58.9]}
19... e5 {[%clk 0:01:40.7]} 20. Rxc8+ {[%clk 0:01:50]} 20... Qxc8 {[%clk
0:01:41.6]} 21. Qc1 {[%clk 0:01:49.7]} 21... Qxc1+ {[%clk 0:01:39.4]} 22. Bxc1
{[%clk 0:01:49.9]} 22... Nc3 {[%clk 0:01:40.3]} 23. Kf1 {[%clk 0:01:27.4]} 23...
Nxa2 {[%clk 0:01:39.4]} 24. Bb2 {[%clk 0:01:27.9]} 24... Kf7 {[%clk 0:01:37.1]}
25. Ke2 {[%clk 0:01:27.7]} 25... Ke6 {[%clk 0:01:34.9]} 26. e4 {[%clk
0:01:27.8]} 26... Nb4 {[%clk 0:01:32.2]} 27. Nd2 {[%clk 0:01:23.3]} 27... Nc6
{[%clk 0:01:30.7]} 28. Kd3 {[%clk 0:01:22.6]} 28... b5 {[%clk 0:01:25.7]} 29. f3
{[%clk 0:01:20.7]} 29... a5 {[%clk 0:01:24.6]} 30. Nb1 {[%clk 0:01:20]} 30...
Bc5 {[%clk 0:01:21.6]} 31. Nc3 {[%clk 0:01:18.9]} 31... Bd4 {[%clk 0:01:17.7]}
32. Bc1 {[%clk 0:01:19]} 32... Bxc3 {[%clk 0:01:15.8]} 33. Kxc3 {[%clk
0:01:18.9]} 33... g6 {[%clk 0:01:12.4]} 34. Be3 {[%clk 0:01:18.3]} 34... f5
{[%clk 0:01:11.6]} 35. Bb6 {[%clk 0:01:16.1]} 35... g5 {[%clk 0:01:00.2]} 36. g4
{[%clk 0:01:13.7]} 36... f4 {[%clk 0:00:33.3]} 37. h3 {[%clk 0:01:03.4]} 37...
Kd6 {[%clk 0:00:29.5]} 38. Bf2 {[%clk 0:01:00.1]} 38... a4 {[%clk 0:00:18.6]}
39. b4 {[%clk 0:00:45.1]} 39... Nd8 {[%clk 0:00:10.2]} 40. Bc5+ {[%clk
0:00:44.5]} 40... Ke6 {[%clk 0:00:10.3]} 41. Bb6 {[%clk 0:00:41.4]} 41... Nf7
{[%clk 0:00:09.8]} 42. Bc5 {[%clk 0:00:37.2]} 42... Kf6 {[%clk 0:00:07.8]} 43.
Kd3 {[%clk 0:00:35.4]} 43... Kg6 {[%clk 0:00:07.7]} 44. Kc3 {[%clk 0:00:34.9]}
44... Kf6 {[%clk 0:00:05.8]} 45. Kd3 {[%clk 0:00:35.2]} 45... Nh8 {[%clk
0:00:06.1]} 46. Kc3 {[%clk 0:00:34.3]} 46... Ng6 {[%clk 0:00:06.6]} 47. Bf2
{[%clk 0:00:34.5]} 47... Nf8 {[%clk 0:00:05.3]} 48. Bc5 {[%clk 0:00:32.6]} 48...
Ne6 {[%clk 0:00:05.7]} 49. Bb6 {[%clk 0:00:30.7]} 49... h5 {[%clk 0:00:05.4]}
50. Bf2 {[%clk 0:00:25.8]} 50... hxg4 {[%clk 0:00:05.1]} 51. hxg4 {[%clk
0:00:25.6]} 51... Nf8 {[%clk 0:00:04.8]} 52. Bc5 {[%clk 0:00:24.1]} 52... Ng6
{[%clk 0:00:05.1]} 53. Bf2 {[%clk 0:00:07.3]} 53... Nh4 {[%clk 0:00:06]} 0-1

[Event "*** Titled Tuesday Blitz"]
[Site "Chess.com"]
[Date "2021.03.09"]
[Round "1"]
[White "Blazinq"]
[Black "FeketeBarika"]
[Result "1-0"]
[WhiteElo "2614"]
[BlackElo "2308"]
[TimeControl "180+1"]
[EndTime "10:08:07 PST"]
[Termination "Blazinq won by checkmate"]

1. e4 {[%clk 0:03:00.9]} 1... e6 {[%clk 0:02:20.7]} 2. d4 {[%clk 0:02:58]} 2...
d5 {[%clk 0:02:20.7]} 3. Nc3 {[%clk 0:02:58.6]} 3... Bb4 {[%clk 0:02:17.8]} 4.
e5 {[%clk 0:02:54.6]} 4... c5 {[%clk 0:02:15.9]} 5. a3 {[%clk 0:02:53.6]} 5...
Bxc3+ {[%clk 0:02:15.3]} 6. bxc3 {[%clk 0:02:54.5]} 6... Ne7 {[%clk 0:02:15.1]}
7. a4 {[%clk 0:02:52.7]} 7... Nbc6 {[%clk 0:02:07.3]} 8. Nf3 {[%clk 0:02:48.7]}
8... O-O {[%clk 0:02:03.8]} 9. Bd3 {[%clk 0:02:43.7]} 9... Nf5 {[%clk
0:01:57.4]} 10. O-O {[%clk 0:02:41]} 10... c4 {[%clk 0:01:56.6]} 11. Bxf5 {[%clk
0:02:32.5]} 11... exf5 {[%clk 0:01:57.5]} 12. Ba3 {[%clk 0:02:33.4]} 12... Re8
{[%clk 0:01:55.6]} 13. Rb1 {[%clk 0:02:21.8]} 13... b6 {[%clk 0:01:53.2]} 14.
Qd2 {[%clk 0:02:12.5]} 14... Qd7 {[%clk 0:01:45.9]} 15. Rfe1 {[%clk 0:01:52]}
15... Bb7 {[%clk 0:01:38]} 16. Qf4 {[%clk 0:01:44.3]} 16... Qe6 {[%clk
0:01:29.8]} 17. Nh4 {[%clk 0:01:22.7]} 17... Bc8 {[%clk 0:01:20.7]} 18. Re3
{[%clk 0:01:21.2]} 18... Ne7 {[%clk 0:01:12.3]} 19. Bxe7 {[%clk 0:01:11.2]}
19... Rxe7 {[%clk 0:01:13.2]} 20. Rf3 {[%clk 0:01:01]} 20... g6 {[%clk
0:01:08.4]} 21. Qh6 {[%clk 0:00:46.5]} 21... f6 {[%clk 0:00:49.2]} 22. Nxf5
{[%clk 0:00:19.6]} 22... Rf7 {[%clk 0:00:39]} 23. Nh4 {[%clk 0:00:12.1]} 23...
fxe5 {[%clk 0:00:37]} 24. Re1 {[%clk 0:00:12.2]} 24... e4 {[%clk 0:00:36.6]} 25.
Rg3 {[%clk 0:00:10.3]} 25... Qf6 {[%clk 0:00:35.6]} 26. Rf1 {[%clk 0:00:08.1]}
26... Bf5 {[%clk 0:00:32.6]} 27. f3 {[%clk 0:00:08.4]} 27... exf3 {[%clk
0:00:31.4]} 28. Rgxf3 {[%clk 0:00:07.9]} 28... Qg7 {[%clk 0:00:20.5]} 29. Qxg7+
{[%clk 0:00:07.9]} 29... Kxg7 {[%clk 0:00:21.4]} 30. Nxf5+ {[%clk 0:00:08.8]}
30... gxf5 {[%clk 0:00:18.3]} 31. Rxf5 {[%clk 0:00:09.7]} 31... Rxf5 {[%clk
0:00:18.8]} 32. Rxf5 {[%clk 0:00:10.6]} 32... Rd8 {[%clk 0:00:18.3]} 33. Kf2
{[%clk 0:00:10.6]} 33... Rd7 {[%clk 0:00:18]} 34. Kf3 {[%clk 0:00:10.5]} 34...
Kg6 {[%clk 0:00:16.9]} 35. Kf4 {[%clk 0:00:10]} 35... Re7 {[%clk 0:00:12.7]} 36.
Rg5+ {[%clk 0:00:09.5]} 36... Kf6 {[%clk 0:00:12.4]} 37. Rf5+ {[%clk 0:00:09.7]}
37... Kg6 {[%clk 0:00:12.1]} 38. Rxd5 {[%clk 0:00:10.1]} 38... Re2 {[%clk
0:00:11.8]} 39. Rd6+ {[%clk 0:00:10.6]} 39... Kf7 {[%clk 0:00:10.7]} 40. Rd7+
{[%clk 0:00:11]} 40... Kf6 {[%clk 0:00:11]} 41. g4 {[%clk 0:00:07.1]} 41... Rxc2
{[%clk 0:00:10.7]} 42. h4 {[%clk 0:00:04.7]} 42... Rxc3 {[%clk 0:00:10.5]} 43.
Rxh7 {[%clk 0:00:04.2]} 43... Rd3 {[%clk 0:00:10.5]} 44. Ke4 {[%clk 0:00:04.7]}
44... Rg3 {[%clk 0:00:09.6]} 45. Rh6+ {[%clk 0:00:05.1]} 45... Kg7 {[%clk
0:00:09.6]} 46. g5 {[%clk 0:00:06]} 46... Rg4+ {[%clk 0:00:09.1]} 47. Kf5 {[%clk
0:00:05.6]} 47... Rxd4 {[%clk 0:00:08.5]} 48. Rc6 {[%clk 0:00:06.2]} 48... Rd5+
{[%clk 0:00:08]} 49. Kg4 {[%clk 0:00:06.2]} 49... Rc5 {[%clk 0:00:08.2]} 50. Rd6
{[%clk 0:00:05.6]} 50... c3 {[%clk 0:00:08.1]} 51. Rd7+ {[%clk 0:00:06.1]} 51...
Kg6 {[%clk 0:00:07.9]} 52. h5# {[%clk 0:00:06.3]} 1-0

[Event "*** Titled Tuesday Blitz"]
[Site "Chess.com"]
[Date "2021.03.09"]
[Round "1"]
[White "woodhy"]
[Black "GigaQuparadze"]
[Result "0-1"]
[WhiteElo "2472"]
[BlackElo "2951"]
[TimeControl "180+1"]
[EndTime "10:08:09 PST"]
[Termination "GigaQuparadze won by resignation"]

1. e4 {[%clk 0:02:59.2]} 1... c5 {[%clk 0:02:57]} 2. Nf3 {[%clk 0:02:57.5]} 2...
e6 {[%clk 0:02:56.9]} 3. d4 {[%clk 0:02:54.7]} 3... cxd4 {[%clk 0:02:57.8]} 4.
Nxd4 {[%clk 0:02:54.4]} 4... a6 {[%clk 0:02:57.5]} 5. c4 {[%clk 0:02:52.5]} 5...
Nf6 {[%clk 0:02:56.6]} 6. Nc3 {[%clk 0:02:45]} 6... Qc7 {[%clk 0:02:56.2]} 7. a3
{[%clk 0:02:31.8]} 7... b6 {[%clk 0:02:46.8]} 8. Be3 {[%clk 0:02:29.4]} 8... Bb7
{[%clk 0:02:46.8]} 9. f3 {[%clk 0:02:28.8]} 9... Nc6 {[%clk 0:02:46.3]} 10. Rc1
{[%clk 0:02:28.6]} 10... Nxd4 {[%clk 0:02:43.7]} 11. Bxd4 {[%clk 0:02:26.1]}
11... Bd6 {[%clk 0:02:42.7]} 12. g3 {[%clk 0:02:18.3]} 12... h5 {[%clk
0:02:40.9]} 13. Bg2 {[%clk 0:02:18]} 13... h4 {[%clk 0:02:40.8]} 14. f4 {[%clk
0:02:18.1]} 14... Bc5 {[%clk 0:02:39]} 15. b4 {[%clk 0:02:14]} 15... Bxd4 {[%clk
0:02:37.1]} 16. Qxd4 {[%clk 0:02:14.9]} 16... Rc8 {[%clk 0:02:37.3]} 17. Na4
{[%clk 0:01:52.9]} 17... b5 {[%clk 0:02:37.1]} 18. Nb6 {[%clk 0:01:47.6]} 18...
Rb8 {[%clk 0:02:36.6]} 19. c5 {[%clk 0:01:47.2]} 19... Bxe4 {[%clk 0:02:05.5]}
20. Bxe4 {[%clk 0:01:05]} 20... Nxe4 {[%clk 0:02:04.5]} 21. Qxg7 {[%clk
0:00:28.3]} 21... Ke7 {[%clk 0:02:04.1]} 22. Qd4 {[%clk 0:00:23.6]} 22... Qc6
{[%clk 0:01:54.7]} 23. Rd1 {[%clk 0:00:19.5]} 23... Nf6 {[%clk 0:01:53.5]} 24.
Rg1 {[%clk 0:00:13.3]} 24... hxg3 {[%clk 0:01:53.2]} 25. hxg3 {[%clk 0:00:14.2]}
25... Rh2 {[%clk 0:01:46.2]} 26. Qd6+ {[%clk 0:00:13.8]} 26... Qxd6 {[%clk
0:01:45.7]} 27. Rxd6 {[%clk 0:00:13.7]} 27... Ra2 {[%clk 0:01:42.6]} 28. g4
{[%clk 0:00:12.2]} 28... Ra1+ {[%clk 0:01:32.8]} 29. Rd1 {[%clk 0:00:10.2]}
29... Rxd1+ {[%clk 0:01:09.1]} 30. Kxd1 {[%clk 0:00:11.1]} 30... d6 {[%clk
0:01:09.5]} 31. g5 {[%clk 0:00:09.8]} 31... Ne4 {[%clk 0:01:09.5]} 32. Re1
{[%clk 0:00:08.9]} 32... dxc5 {[%clk 0:01:01.1]} 33. Rxe4 {[%clk 0:00:07.8]}
33... Rxb6 {[%clk 0:01:01.6]} 34. bxc5 {[%clk 0:00:08.1]} 34... Rb8 {[%clk
0:01:02.1]} 35. Kc2 {[%clk 0:00:07.7]} 35... Rd8 {[%clk 0:01:01.5]} 36. Re5
{[%clk 0:00:08]} 36... Rd4 {[%clk 0:01:01.1]} 37. f5 {[%clk 0:00:07.9]} 37...
Rg4 {[%clk 0:01:00.1]} 38. f6+ {[%clk 0:00:07.2]} 38... Kd7 {[%clk 0:00:59.3]}
39. Kb3 {[%clk 0:00:08.1]} 39... Rf4 {[%clk 0:00:49.7]} 40. Kb2 {[%clk
0:00:05.9]} 40... a5 {[%clk 0:00:47.7]} 41. Kb3 {[%clk 0:00:06]} 41... Rf3+
{[%clk 0:00:47.5]} 42. Kb2 {[%clk 0:00:06.2]} 42... a4 {[%clk 0:00:47.1]} 43.
Ka2 {[%clk 0:00:05.6]} 43... Rf2+ {[%clk 0:00:46.1]} 44. Kb1 {[%clk 0:00:05.6]}
44... Kc6 {[%clk 0:00:45.8]} 45. Ka1 {[%clk 0:00:06]} 45... Rg2 {[%clk
0:00:37.6]} 46. Kb1 {[%clk 0:00:05.9]} 46... Kc7 {[%clk 0:00:34.9]} 47. Ka1
{[%clk 0:00:05.9]} 47... Kd7 {[%clk 0:00:34.6]} 48. Kb1 {[%clk 0:00:06.2]} 48...
Rg4 {[%clk 0:00:31.5]} 49. Ka1 {[%clk 0:00:06.1]} 49... Rc4 {[%clk 0:00:31.8]}
50. Kb2 {[%clk 0:00:06]} 50... Ke8 {[%clk 0:00:31.5]} 51. g6 {[%clk 0:00:05.8]}
51... fxg6 {[%clk 0:00:31.1]} 52. Rxe6+ {[%clk 0:00:06.1]} 52... Kf7 {[%clk
0:00:31.6]} 53. Rc6 {[%clk 0:00:06.6]} 53... g5 {[%clk 0:00:31.4]} 54. Kb1
{[%clk 0:00:04.3]} 54... g4 {[%clk 0:00:31.6]} 55. Kb2 {[%clk 0:00:05.2]} 55...
g3 {[%clk 0:00:31.7]} 56. Rc7+ {[%clk 0:00:05.7]} 56... Kxf6 {[%clk 0:00:31.7]}
57. Rc8 {[%clk 0:00:06.1]} 57... Kg7 {[%clk 0:00:31.2]} 58. c6 {[%clk 0:00:06]}
58... g2 {[%clk 0:00:31]} 59. Rc7+ {[%clk 0:00:06.9]} 59... Kf6 {[%clk
0:00:28.8]} 60. Rc8 {[%clk 0:00:06.7]} 60... g1=Q {[%clk 0:00:28.6]} 0-1

[Event "*** Titled Tuesday Blitz"]
[Site "Chess.com"]
[Date "2021.03.09"]
[Round "1"]
[White "kekic76"]
[Black "Szparu"]
[Result "0-1"]
[WhiteElo "2345"]
[BlackElo "2645"]
[TimeControl "180+1"]
[EndTime "10:08:09 PST"]
[Termination "Szparu won by resignation"]

1. e4 {[%clk 0:03:00.9]} 1... c5 {[%clk 0:02:58.4]} 2. Nf3 {[%clk 0:03:00.8]}
2... Nc6 {[%clk 0:02:58.3]} 3. d4 {[%clk 0:03:01]} 3... cxd4 {[%clk 0:02:58.2]}
4. Nxd4 {[%clk 0:03:01.9]} 4... Nf6 {[%clk 0:02:58.3]} 5. Nc3 {[%clk 0:03:01.2]}
5... d6 {[%clk 0:02:58.6]} 6. g3 {[%clk 0:02:57.2]} 6... g6 {[%clk 0:02:36.7]}
7. Bg2 {[%clk 0:02:56.5]} 7... Bg7 {[%clk 0:02:33.3]} 8. Nxc6 {[%clk 0:02:56.6]}
8... bxc6 {[%clk 0:02:26.5]} 9. e5 {[%clk 0:02:56.2]} 9... dxe5 {[%clk
0:01:36.5]} 10. Bxc6+ {[%clk 0:02:46.3]} 10... Bd7 {[%clk 0:01:36.3]} 11. Bxd7+
{[%clk 0:02:45.7]} 11... Nxd7 {[%clk 0:01:29.7]} 12. O-O {[%clk 0:02:43.8]}
12... O-O {[%clk 0:01:28.7]} 13. Nd5 {[%clk 0:02:43.8]} 13... Nb6 {[%clk
0:01:27.2]} 14. Nxb6 {[%clk 0:02:42.7]} 14... Qxb6 {[%clk 0:01:28.1]} 15. b3
{[%clk 0:02:41.7]} 15... e4 {[%clk 0:01:26.8]} 16. Rb1 {[%clk 0:02:19.6]} 16...
Qa6 {[%clk 0:01:23.6]} 17. a4 {[%clk 0:02:17.1]} 17... Rad8 {[%clk 0:01:22.7]}
18. Qe1 {[%clk 0:02:07.7]} 18... f5 {[%clk 0:01:07.3]} 19. Be3 {[%clk
0:02:03.1]} 19... e5 {[%clk 0:01:02.5]} 20. Qb4 {[%clk 0:01:54.2]} 20... Rb8
{[%clk 0:00:34.2]} 21. Qc5 {[%clk 0:01:50.4]} 21... f4 {[%clk 0:00:29.3]} 22.
Qxa7 {[%clk 0:01:39.2]} 22... Qe6 {[%clk 0:00:29.1]} 23. Rfe1 {[%clk 0:01:12.9]}
23... fxe3 {[%clk 0:00:28.5]} 24. Qxe3 {[%clk 0:01:12.4]} 24... Rb4 {[%clk
0:00:25.4]} 25. Re2 {[%clk 0:01:02.7]} 25... Rd4 {[%clk 0:00:23.8]} 26. Rbe1
{[%clk 0:01:01.3]} 26... Rf3 {[%clk 0:00:22.5]} 27. Qg5 {[%clk 0:01:00.8]} 27...
Bf6 {[%clk 0:00:21.8]} 28. Qh6 {[%clk 0:00:58]} 28... Qf5 {[%clk 0:00:21.1]} 29.
Qc1 {[%clk 0:00:43.6]} 29... h5 {[%clk 0:00:20.4]} 30. a5 {[%clk 0:00:42.3]}
30... Bg5 {[%clk 0:00:12.9]} 31. Qa3 {[%clk 0:00:39.8]} 31... Rd7 {[%clk
0:00:05.6]} 32. a6 {[%clk 0:00:38.7]} 32... Qf7 {[%clk 0:00:05.5]} 33. Qc5
{[%clk 0:00:33.5]} 33... e3 {[%clk 0:00:04.9]} 34. fxe3 {[%clk 0:00:28.8]} 34...
Bf6 {[%clk 0:00:04.3]} 35. e4 {[%clk 0:00:25]} 35... g5 {[%clk 0:00:03.6]} 36.
b4 {[%clk 0:00:21.9]} 36... g4 {[%clk 0:00:03.4]} 37. b5 {[%clk 0:00:22]} 37...
Qe7 {[%clk 0:00:02.5]} 38. Qxe7 {[%clk 0:00:20.5]} 38... Bxe7 {[%clk 0:00:02.7]}
39. Rb1 {[%clk 0:00:14.9]} 39... Bc5+ {[%clk 0:00:03.6]} 40. Kg2 {[%clk
0:00:14.6]} 40... Bb6 {[%clk 0:00:04.5]} 41. c4 {[%clk 0:00:12]} 41... Rc7
{[%clk 0:00:04.8]} 42. Ra1 {[%clk 0:00:11.2]} 42... Rd3 {[%clk 0:00:04.6]} 43.
a7 {[%clk 0:00:09.4]} 43... Rxa7 {[%clk 0:00:04.5]} 44. Rxa7 {[%clk 0:00:08.9]}
44... Bxa7 {[%clk 0:00:05.4]} 45. Ra2 {[%clk 0:00:09.1]} 45... Bd4 {[%clk
0:00:05.7]} 46. Ra6 {[%clk 0:00:07.7]} 46... Rd2+ {[%clk 0:00:06.3]} 47. Kf1
{[%clk 0:00:07.8]} 47... Rxh2 {[%clk 0:00:06.6]} 48. Rc6 {[%clk 0:00:07.9]}
48... Rb2 {[%clk 0:00:06.5]} 49. Ke1 {[%clk 0:00:06.9]} 49... Kg7 {[%clk
0:00:06.1]} 50. Kf1 {[%clk 0:00:06.6]} 50... h4 {[%clk 0:00:06.2]} 51. gxh4
{[%clk 0:00:06.7]} 51... g3 {[%clk 0:00:06.8]} 52. h5 {[%clk 0:00:04.5]} 52...
g2+ {[%clk 0:00:07.2]} 0-1